bitfinex/quotes_SOLUSD_20251013
["timestamp","ask_amount","ask_price","bid_price","bid_amount"]
[1760326847294,10.54969912,195.29,195.24,43.5361606]
[1760326847505,11.20969912,195.29,195.24,43.5361606]
[1760326847795,11.20969912,195.29,195.24,38.41425936]
[1760326848190,10.54969912,195.25,195.22,5.12242598]
[1760326848389,10.54969912,195.23,195.22,5.12242598]
[1760326848695,11.20969912,195.23,195.22,5.12242598]
[1760326850001,11.20969912,195.23,195.15,17.93492184]
[1760326850182,10.54969912,195.2,195.15,17.93492184]
[1760326850374,20.8,195.27,195.17,0.72]
[1760326850583,10.54969912,195.22,195.17,0.72]
[1760326850899,10.54969912,195.26,195.17,0.72]
[1760326851200,10.54969912,195.24,195.17,0.72]
[1760326851411,10.54969912,195.22,195.17,0.72]
[1760326851590,7.06277482,195.21,195.15,18.65492184]
[1760326853011,7.72277482,195.21,195.15,17.93492184]
[1760326853598,0.66,195.21,195.15,17.93492184]
[1760326853784,7.06277482,195.21,195.15,43.55623877]
[1760326859100,7.06277482,195.21,195.15,39.09197539]
[1760326859909,7.06277482,195.21,195.16,0.66]
[1760326860123,0.71,195.2,195.17,17.93308396]
[1760326860411,27.86277482,195.24,195.11,26.28639537]
[1760326860412,0.71,195.19,195.15,5.12426338]
[1760326860706,0.71,195.18,195.15,5.12426338]
[1760326860884,0.71,195.17,195.15,5.12426338]
[1760326861325,7.06277482,195.16,195.15,5.12426338]
[1760326861615,7.06277482,195.16,195.11,25.62639537]
[1760326861907,7.06277482,195.16,195.11,26.28639537]
[1760326862108,0.71,195.24,195.12,7.72277482]
[1760326862306,7.06277482,195.25,195.14,7.06277482]
[1760326862490,7.06277482,195.28,195.18,7.06277482]
[1760326862685,7.06277482,195.28,195.19,0.66]
[1760326863492,7.06277482,195.28,195.2,43.54508194]
[1760326864087,7.06277482,195.22,195.2,5.12295081]
[1760326864305,0.71,195.21,195.18,5.12346694]
[1760326864511,7.06277482,195.19,195.18,5.12346694]
[1760326864691,7.77277482,195.19,195.18,5.12346694]
[1760326865018,7.77277482,195.19,195.07,7.06277482]
[1760326865190,7.06277482,195.16,195.08,0.66]
[1760326865586,7.06277482,195.16,195.09,17.94043774]
[1760326865802,0.1120818,195.11,195.09,17.94043774]
[1760326866007,0.11274082,195.12,195.1,0.66]
[1760326866613,0.10016316,195.15,195.11,0.66]
[1760326866911,0.10676021,195.16,195.13,7.06277482]
[1760326867112,0.10676021,195.16,195.14,0.66]
[1760326867313,0.10676021,195.16,195.15,0.66]
[1760326867509,0.10676021,195.16,195.15,5.78426338]
[1760326868107,0.10676021,195.16,195.15,5.12426338]
[1760326868491,7.87953503,195.16,195.15,5.12426338]
[1760326869203,0.10676021,195.16,195.15,5.12426338]
[1760326869509,0.11177349,195.17,195.15,5.78426338]
[1760326869722,7.06277482,195.26,195.16,7.72277482]
[1760326870012,7.06277482,195.24,195.16,7.72277482]
[1760326870317,7.77277482,195.24,195.16,0.66]
[1760326870903,7.77277482,195.24,195.17,17.93308396]
[1760326871729,10.87647521,195.33,195.17,17.93308396]
[1760326871730,0.71,195.29,195.21,7.06277482]
[1760326871912,7.06277482,195.3,195.22,0.66]
[1760326872109,0.71,195.31,195.23,7.06277482]
[1760326872806,0.71,195.31,195.24,17.92665436]
[1760326873514,7.06277482,195.32,195.24,17.92665436]
[1760326873515,7.77277482,195.3,195.24,17.92665436]
[1760326875828,0.71,195.3,195.24,17.92665436]
[1760326876010,7.77277482,195.33,195.25,7.06277482]
[1760326876204,7.77277482,195.33,195.25,7.72277482]
[1760326876604,0.71,195.37,195.29,7.06277482]
[1760326876805,0.71,195.37,195.3,0.66]
[1760326877018,7.77277482,195.39,195.31,17.92022937]
[1760326877221,7.06277482,195.37,195.31,17.92022937]
[1760326877727,13.55147805,195.45,195.31,17.92022937]
[1760326877898,7.06277482,195.38,195.31,18.58022937]
[1760326878996,0.71,195.39,195.31,43.52055705]
[1760326879202,7.06277482,195.43,195.36,7.06277482]
[1760326879511,7.77277482,195.48,195.4,7.06277482]
[1760326879713,7.77277482,195.48,195.4,0.66]
[1760326880214,0.71,195.48,195.4,7.72277482]
[1760326880410,7.77277482,195.48,195.4,7.72277482]
[1760326880809,7.77277482,195.48,195.4,0.66]
[1760326881014,7.06277482,195.46,195.4,0.66]
[1760326881224,7.06277482,195.42,195.41,5.11744537]
[1760326881409,7.77277482,195.42,195.35,17.91656001]
[1760326881910,7.06277482,195.4,195.35,17.91656001]
[1760326882105,7.06277482,195.38,195.35,5.11901714]
[1760326882511,7.77277482,195.38,195.35,17.91656001]
[1760326882923,7.06277482,195.4,195.35,18.57656001]
[1760326883130,0.71,195.39,195.35,17.91656001]
[1760326883318,7.06277482,195.38,195.35,12.79754287]
[1760326883711,7.06277482,195.41,195.36,0.66]
[1760326884130,7.06277482,195.37,195.35,12.79754287]
[1760326885539,7.06277482,195.37,195.32,17.91931188]
[1760326885908,0.0995296,195.36,195.33,0.68]
[1760326887216,7.06277482,195.35,195.32,17.91931188]
[1760326887534,0.68,195.34,195.32,12.79950849]
[1760326887744,7.06277482,195.35,195.32,12.79950849]
[1760326887914,0.0995296,195.36,195.33,0.68]
[1760326888434,0.0995296,195.36,195.32,12.79950849]
[1760326888819,0.0995296,195.36,195.32,13.47950849]
[1760326889622,0.0995296,195.36,195.32,18.59931188]
[1760326890311,0.68,195.35,195.32,17.91931188]
[1760326890511,7.74277482,195.34,195.32,17.91931188]
[1760326891317,0.68,195.33,195.32,5.11980339]
[1760326891722,0.68,195.33,195.29,12.80104186]
[1760326891932,7.06277482,195.34,195.29,13.48104186]
[1760326892144,7.74277482,195.34,195.29,13.48104186]
[1760326892321,0.0995296,195.36,195.3,0.68]
[1760326892510,0.0995296,195.36,195.3,7.74277482]
[1760326892710,0.0995296,195.36,195.31,0.68]
[1760326892949,0.0995296,195.36,195.32,0.68]
[1760326893126,0.0995296,195.36,195.33,0.68]
[1760326893651,0.0995296,195.36,195.33,12.7986134]
[1760326893839,0.0995296,195.36,195.34,7.74277482]
[1760326894216,0.0995296,195.36,195.35,0.68]
[1760326894610,0.0995296,195.36,195.33,12.7986134]
[1760326894806,0.0995296,195.36,195.34,0.68]
[1760326895212,0.0995296,195.36,195.33,12.7986134]
[1760326895412,0.0995296,195.36,195.34,0.68]
[1760326895832,0.0995296,195.36,195.35,5.11901714]
[1760326897134,0.7795296,195.36,195.35,5.11901714]
[1760326897341,7.84230442,195.36,195.35,5.11901714]
[1760326899243,7.84230442,195.36,195.3,17.92114695]
[1760326899616,7.16230442,195.36,195.3,18.60114695]
[1760326899839,20.8,195.28,195.23,5.1221636]
[1760326900133,7.06277482,195.24,195.21,5.12248019]
[1760326900439,7.06277482,195.22,195.21,5.12248019]
[1760326900812,0.68,195.24,195.21,5.12248019]
[1760326900813,7.74277482,195.24,195.21,5.12248019]
[1760326901016,7.06277482,195.24,195.21,5.12248019]
[1760326901219,7.06277482,195.22,195.21,5.12248019]
[1760326901412,7.74277482,195.22,195.21,5.12248019]
[1760326903440,7.74277482,195.22,195.2,4.92]
[1760326903644,0.68,195.21,195.2,4.92]
[1760326905548,5.80268838,195.21,195.2,4.92]
[1760326905933,5.90674731,195.21,195.2,4.92]
[1760326906128,0.78405893,195.21,195.2,4.92]
[1760326906432,0.78405893,195.21,195.14,5.12428009]
[1760326906433,20.8,195.19,195.14,5.12428009]
[1760326906634,7.06277482,195.16,195.14,5.12428009]
[1760326907669,20.8,195.18,195.15,0.71]
[1760326907849,7.06277482,195.2,195.15,0.71]
[1760326908358,7.78277482,195.2,195.15,0.71]
[1760326908760,7.06277482,195.18,195.09,7.06277482]
[1760326908934,7.06277482,195.16,195.11,0.71]
[1760326909129,7.06277482,195.16,195.12,0.71]
[1760326911055,7.06277482,195.16,195.13,5.1247886]
[1760326911433,7.06277482,195.16,195.13,17.9367601]
[1760326912155,7.06277482,195.14,195.08,0.71]
[1760326912345,7.06277482,195.12,195.08,0.71]
[1760326913048,7.06277482,195.12,195.09,18.65043774]
[1760326913654,10.52922159,195.13,195.09,18.65043774]
[1760326914658,11.23922159,195.13,195.09,17.94043774]
[1760326914957,11.23922159,195.13,195.09,12.81459839]
[1760326915161,10.52922159,195.13,195.09,12.81459839]
[1760326915460,0.71,195.12,195.09,12.81459839]
[1760326915853,10.52922159,195.13,195.09,12.81459839]
[1760326916054,11.23922159,195.13,195.09,12.81459839]
[1760326916815,0.71,195.12,195.09,12.81459839]
[1760326917060,10.52922159,195.13,195.09,12.81459839]
[1760326917651,11.23922159,195.13,195.09,12.81459839]
[1760326919448,20.8,195.17,195.09,12.81459839]
[1760326919665,10.52922159,195.16,195.1,0.67]
[1760326919857,0.71,195.17,195.1,11.19922159]
[1760326920364,0.71,195.17,195.11,0.67]
[1760326920567,10.52922159,195.16,195.12,17.93767937]
[1760326920773,11.23922159,195.16,195.12,17.93767937]
[1760326921359,10.52922159,195.19,195.13,0.67]
[1760326921657,0.81405893,195.21,195.13,0.67]
[1760326921865,10.52922159,195.2,195.13,0.67]
[1760326922758,0.81405893,195.21,195.14,17.93584093]
[1760326923064,10.52922159,195.2,195.14,17.93584093]
[1760326923564,10.52922159,195.2,195.14,18.60584093]
[1760326923769,10.63328052,195.21,195.15,0.67]
[1760326923970,11.34328052,195.21,195.15,0.67]
[1760326924777,0.81405893,195.21,195.15,0.67]
[1760326924952,11.34328052,195.21,195.16,17.93400285]
[1760326925156,11.34328052,195.21,195.16,18.60400285]
[1760326925871,0.10500755,195.17,195.16,18.60400285]
[1760326926074,11.34422914,195.17,195.16,17.93400285]
[1760326926378,0.10500755,195.17,195.16,17.93400285]
[1760326926955,0.10500755,195.17,195.13,17.9367601]
[1760326927176,0.10500755,195.17,195.16,0.67]
[1760326927572,0.10237445,195.18,195.16,0.67]
[1760326927773,0.11049163,195.2,195.16,11.19922159]
[1760326927978,0.10987657,195.21,195.18,10.52922159]
[1760326927979,1e-08,195.21,195.18,10.52922159]
[1760326928195,1e-08,195.21,195.2,10.52922159]
[1760326928577,1e-08,195.21,195.2,11.19922159]
[1760326928774,5.11742348,195.42,195.24,20.8]
[1760326928991,11.23922159,195.36,195.27,10.52922159]
[1760326929195,11.23922159,195.36,195.28,0.67]
[1760326929997,11.23922159,195.36,195.29,17.92206461]
[1760326930699,11.43922159,195.38,195.3,0.67]
[1760326931077,10.93922159,195.38,195.3,0.67]
[1760326932097,10.93922159,195.38,195.31,17.92022937]
[1760326932411,10.52922159,195.38,195.32,0.67]
[1760326933298,10.52922159,195.38,195.31,17.92022937]
[1760326933484,11.23922159,195.38,195.31,18.59022937]
[1760326934599,10.52922159,195.34,195.31,17.92022937]
[1760326935698,20.8,195.41,195.32,0.67]
[1760326935901,10.52922159,195.39,195.32,0.67]
[1760326936505,10.52922159,195.39,195.33,17.9183945]
[1760326936891,10.52922159,195.37,195.33,17.9183945]
[1760326937280,10.52922159,195.37,195.33,18.5883945]
[1760326937493,10.52922159,195.35,195.33,17.9183945]
[1760326937677,0.71,195.4,195.33,18.5883945]
[1760326937895,10.52922159,195.36,195.33,18.5883945]
[1760326938105,10.52922159,195.36,195.33,17.9183945]
[1760326938605,11.23922159,195.36,195.33,12.79885322]
[1760326939904,10.52922159,195.34,195.29,17.92206461]
[1760326940206,10.52922159,195.36,195.3,0.67]
[1760326941592,0.71,195.35,195.29,17.92206461]
[1760326941799,0.71,195.35,195.29,18.59206461]
[1760326941988,10.52922159,195.34,195.26,43.53081334]
[1760326942194,10.52922159,195.3,195.26,18.59481818]
[1760326942394,11.23922159,195.3,195.26,17.92481818]
[1760326942696,10.52922159,195.3,195.26,17.92481818]
[1760326942895,10.52922159,195.3,195.27,0.67]
[1760326943093,10.52922159,195.3,195.24,10.87647521]
[1760326943303,10.52922159,195.3,195.25,0.67]
[1760326943605,10.52922159,195.3,195.26,0.67]
[1760326943807,10.52922159,195.3,195.27,0.67]
[1760326944512,10.52922159,195.3,195.28,5.1208521]
[1760326945299,0.7,195.29,195.28,5.1208521]
[1760326945524,0.7,195.29,195.25,5.12163892]
[1760326945693,10.52922159,195.26,195.25,5.12163892]
[1760326946591,10.52922159,195.26,195.24,12.80441356]
[1760326951108,0.7,195.25,195.24,12.80441356]
[1760326951718,10.52922159,195.26,195.24,12.80441356]
[1760326953001,0.7,195.28,195.24,12.80441356]
[1760326953203,10.52922159,195.26,195.24,12.80441356]
[1760326953817,10.52922159,195.26,195.22,0.66]
[1760326954020,10.52922159,195.26,195.23,0.66]
[1760326954200,10.52922159,195.26,195.2,17.93032785]
[1760326954201,10.52922159,195.24,195.2,17.93032785]
[1760326954395,10.52922159,195.22,195.2,17.93032785]
[1760326954596,0.7,195.21,195.2,17.93032785]
[1760326954796,0.7,195.21,195.2,5.12295081]
[1760326955007,10.52922159,195.22,195.2,5.12295081]
[1760326955417,0.7,195.21,195.2,5.12295081]
[1760326955912,0.7,195.21,195.16,12.80961145]
[1760326956120,10.52922159,195.18,195.16,12.80961145]
[1760326956301,11.22922159,195.18,195.16,12.80961145]
[1760326956502,0.7,195.17,195.16,12.80961145]
[1760326956905,0.7,195.17,195.14,5.12452598]
[1760326957103,10.52922159,195.15,195.14,5.12452598]
[1760326957309,11.22922159,195.15,195.14,5.12452598]
[1760326957909,11.22922159,195.15,195.1,12.8134895]
[1760326958215,11.22922159,195.15,195.1,13.4734895]
[1760326958717,10.52922159,195.13,195.1,12.8134895]
[1760326958923,0.7,195.12,195.1,12.8134895]
[1760326959111,11.22922159,195.11,195.09,5.12583935]
[1760326959313,0.7,195.1,195.09,5.12583935]
[1760326959827,0.7,195.1,195.02,5.12767921]
[1760326960125,10.52922159,195.06,195.02,17.94687724]
[1760326960328,10.52922159,195.06,195.02,18.60687724]
[1760326960620,10.52922159,195.07,195.03,0.66]
[1760326960803,10.52922159,195.07,195.04,0.66]
[1760326961419,20.8,195.11,195.05,5.12689054]
[1760326961605,10.52922159,195.13,195.05,18.60411689]
[1760326961834,10.52922159,195.13,195.06,0.66]
[1760326962011,11.22922159,195.13,195.06,0.66]
[1760326962600,0.7,195.13,195.06,0.66]
[1760326962803,10.52922159,195.11,195.07,17.94227712]
[1760326963127,0.7,195.1,195.07,17.94227712]
[1760326963420,11.22922159,195.09,195.07,17.94227712]
[1760326963813,0.7,195.08,195.07,17.94227712]
[1760326964018,0.7,195.08,195.05,5.12674874]
[1760326964210,10.52922159,195.06,195.05,5.12674874]
[1760326964730,11.22922159,195.06,195.02,5.12767921]
[1760326965019,10.52922159,195.03,195.01,17.94752199]
[1760326965415,11.22922159,195.03,195.01,17.94752199]
[1760326965819,10.52922159,195.03,195.01,17.94752199]
[1760326966031,0.09472278,195.02,195.01,17.94752199]
[1760326970715,0.09589069,195.03,195.01,18.65752199]
[1760326970918,0.09589069,195.03,195.02,11.23922159]
[1760326970919,1e-08,195.03,195.02,11.23922159]
[1760326972839,1e-08,195.03,195.02,16.3669008]
[1760326973639,1e-08,195.03,195.02,5.83767921]
[1760326973833,1e-08,195.03,195.02,12.90923252]
[1760326974617,1e-08,195.04,195.02,12.90923252]
[1760326974844,0.10995314,195.07,195.02,12.90923252]
[1760326974845,1e-08,195.07,195.03,7.77155331]
[1760326975020,1e-08,195.1,195.06,7.07155331]
[1760326975220,1e-08,195.1,195.09,7.07155331]
[1760326975630,1e-08,195.1,195.09,7.77155331]
[1760326975944,0.69,195.16,195.09,7.77155331]
[1760326976154,1e-08,195.11,195.1,0.7]
[1760326976923,1e-08,195.11,195.1,5.82557662]
[1760326977131,1e-08,195.11,195.1,12.89712993]
[1760326978751,1e-08,195.11,195.1,23.77360514]
[1760326979445,1e-08,195.11,195.1,30.84515845]
[1760326979824,0.69,195.27,195.13,20.8]
[1760326980144,0.69,195.29,195.22,7.07155331]
[1760326980351,7.76155331,195.31,195.23,0.7]
[1760326980542,7.76155331,195.31,195.24,7.07155331]
[1760326980543,0.69,195.31,195.24,7.07155331]
[1760326980745,7.07155331,195.34,195.26,7.07155331]
[1760326981041,7.76155331,195.34,195.27,17.92390023]
[1760326981239,20.8,195.37,195.27,17.92390023]
[1760326981240,7.07155331,195.32,195.27,17.92390023]
[1760326981425,0.69,195.31,195.27,17.92390023]
[1760326981631,7.07155331,195.28,195.25,5.12139026]
[1760326981960,7.07155331,195.26,195.25,5.12139026]
[1760326982162,7.07155331,195.28,195.25,17.92548757]
[1760326982331,0.69,195.33,195.26,0.7]
[1760326982660,7.07155331,195.28,195.25,17.92548757]
[1760326982828,7.07155331,195.26,195.25,5.12139026]
[1760326983028,7.76155331,195.26,195.22,12.80566834]
[1760326983523,7.76155331,195.25,195.22,12.80566834]
[1760326984646,7.07155331,195.25,195.22,12.80566834]
[1760326985258,7.76155331,195.27,195.22,12.80566834]
[1760326985559,0.69,195.26,195.22,12.80566834]
[1760326985937,0.099597,195.23,195.22,12.80566834]
[1760326986136,0.099597,195.23,195.22,13.50566834]
[1760326986879,0.099597,195.23,195.22,12.80566834]
[1760326989147,0.09985799,195.24,195.22,12.80566834]
[1760326989148,0.09985799,195.24,195.22,20.57722165]
[1760326989345,0.10118177,195.27,195.23,0.7]
[1760326989554,0.10118177,195.27,195.22,19.87722165]
[1760326989555,0.10118177,195.27,195.25,7.07155331]
[1760326989753,0.10118177,195.27,195.23,0.7]
[1760326989947,0.10118177,195.27,195.23,7.07155331]
[1760326990150,0.10118177,195.27,195.24,0.7]
[1760326991151,0.10118177,195.27,195.25,5.12163892]
[1760326992054,0.10118177,195.27,195.25,5.82163892]
[1760326992442,0.10118177,195.27,195.25,5.12163892]
[1760326992863,0.69,195.26,195.25,5.12163892]
[1760326993048,0.69,195.26,195.24,12.80450284]
[1760326993049,7.76155331,195.26,195.21,12.80624236]
[1760326993234,7.07155331,195.24,195.21,12.80624236]
[1760326993551,7.76155331,195.24,195.21,12.80624236]
[1760326993761,7.07155331,195.26,195.21,12.80624236]
[1760326993934,0.69,195.25,195.21,12.80624236]
[1760326995446,7.76155331,195.24,195.21,12.80624236]
[1760326995751,7.07155331,195.22,195.2,5.12295081]
[1760326995964,7.76155331,195.22,195.2,5.12295081]
[1760326996260,0.69,195.21,195.2,5.12295081]
[1760326996752,7.07155331,195.22,195.2,5.12295081]
[1760326997364,20.90118177,195.27,195.22,5.12242598]
[1760326997365,0.10118177,195.27,195.22,5.12242598]
[1760326997534,0.10118177,195.27,195.22,17.92849093]
[1760326997732,0.69,195.26,195.22,17.92849093]
[1760326997933,0.10118177,195.27,195.22,17.92849093]
[1760326998146,0.79118177,195.27,195.22,17.92849093]
[1760326998340,0.10118177,195.27,195.22,17.92849093]
[1760326998541,0.10118177,195.27,195.23,0.7]
[1760326998748,0.10118177,195.27,195.22,43.54062083]
[1760326998947,0.10118177,195.27,195.23,0.7]
[1760326999376,0.69,195.26,195.22,12.80606495]
[1760326999562,0.69,195.25,195.22,12.80606495]
[1760326999739,7.86273508,195.27,195.22,12.80606495]
[1760327000340,0.10118177,195.27,195.23,7.77155331]
[1760327000546,0.10118177,195.27,195.25,7.07155331]
[1760327001035,0.10118177,195.27,195.26,0.7]
[1760327001431,0.10118177,195.27,195.26,5.82137662]
[1760327003437,0.10199438,195.28,195.26,5.82137662]
[1760327003642,0.09367078,195.3,195.27,7.77155331]
[1760327003942,1e-08,195.3,195.29,7.07155331]
[1760327004452,1e-08,195.3,195.29,7.77155331]
[1760327006058,0.09250901,195.31,195.29,7.77155331]
[1760327006059,1e-08,195.31,195.29,23.76861841]
[1760327006247,0.09680918,195.35,195.29,23.76861841]
[1760327006248,7.78155331,195.43,195.3,11.58647521]
[1760327006452,0.71,195.43,195.35,7.07155331]
[1760327006763,0.71,195.43,195.37,7.07155331]
[1760327007061,0.71,195.43,195.31,0.71]
[1760327007062,7.07155331,195.43,195.35,7.07155331]
[1760327007260,0.71,195.42,195.35,7.07155331]
[1760327007559,0.71,195.42,195.35,7.78155331]
[1760327008142,0.71,195.42,195.36,5.11875511]
[1760327008340,0.71,195.42,195.36,5.82875511]
[1760327008961,1e-08,195.38,195.37,0.71]
[1760327009162,1e-08,195.38,195.37,7.78155331]
[1760327009956,1e-08,195.38,195.36,5.11875511]
[1760327010150,1e-08,195.38,195.36,12.19030842]
[1760327010357,1e-08,195.38,195.36,5.82875511]
[1760327011057,1e-08,195.38,195.35,19.86882998]
[1760327011263,1e-08,195.38,195.37,0.71]
[1760327012266,1e-08,195.38,195.37,5.82849311]
[1760327013364,1e-08,195.38,195.36,5.11875511]
[1760327013939,1e-08,195.39,195.38,10.87647521]
[1760327014154,1e-08,195.39,195.38,38.74802852]
[1760327014373,1e-08,195.39,195.38,39.45802852]
[1760327014947,1e-08,195.39,195.38,32.38647521]
[1760327015167,1e-08,195.39,195.38,39.45802852]
[1760327015367,1e-08,195.39,195.38,44.57625965]
[1760327015762,1e-08,195.39,195.38,37.50470634]
[1760327015963,1e-08,195.39,195.38,44.57625965]
[1760327017554,1e-08,195.45,195.41,20.8]
[1760327017751,1e-08,195.45,195.44,7.07155331]
[1760327018256,1e-08,195.45,195.42,0.71]
[1760327018470,1e-08,195.45,195.41,27.87155331]
[1760327019260,1e-08,195.45,195.42,24.98169556]
[1760327020578,1e-08,195.45,195.43,7.78155331]
[1760327020773,1e-08,195.45,195.44,7.07155331]
[1760327020977,1e-08,195.45,195.44,7.78155331]
[1760327021573,1e-08,195.45,195.44,7.07155331]
[1760327022381,1e-08,195.45,195.44,7.78155331]
[1760327022682,1e-08,195.45,195.44,12.18821315]
[1760327023253,1e-08,195.45,195.44,12.89821315]
[1760327025966,1e-08,195.46,195.44,12.89821315]
[1760327026286,1e-08,195.46,195.45,12.18795136]
[1760327026980,0.09821251,195.48,195.45,24.97894649]
[1760327028659,0.09821251,195.48,195.45,12.79099513]
[1760327028860,0.75821251,195.48,195.45,12.79099513]
[1760327029469,0.09821251,195.48,195.45,12.79099513]
[1760327029669,0.09821251,195.48,195.45,17.90739318]
[1760327030381,0.66,195.47,195.45,17.90739318]
[1760327030777,2.91459956,195.48,195.45,17.90739318]
[1760327030778,0.09821251,195.48,195.45,17.90739318]
[1760327031087,0.09821251,195.48,195.45,18.60739318]
[1760327031267,0.09821251,195.48,195.46,2.81638705]
[1760327031675,0.09821251,195.48,195.47,5.11587455]
[1760327032390,0.09657324,195.49,195.47,5.11587455]
[1760327032565,1e-08,195.52,195.48,14.39286226]
[1760327032765,0.2,195.58,195.52,2.81638705]
[1760327032987,0.2,195.58,195.53,2.81638705]
[1760327033666,0.2,195.58,195.54,7.03445951]
[1760327033894,0.2,195.58,195.55,5.11378164]
[1760327034897,0.2,195.58,195.54,7.03445951]
[1760327035589,0.2,195.58,195.54,10.47831538]
[1760327035782,0.2,195.58,195.55,10.47831538]
[1760327036095,0.2,195.58,195.56,10.47831538]
[1760327037302,1e-08,195.57,195.56,10.47831538]
[1760327037589,1e-08,195.58,195.56,0.72]
[1760327037897,1e-08,195.58,195.57,10.47831538]
[1760327038588,1e-08,195.58,195.56,10.47831538]
[1760327038768,1e-08,195.58,195.55,10.47831538]
[1760327038975,1e-08,195.58,195.55,11.19831538]
[1760327039588,1e-08,195.58,195.56,5.11352014]
[1760327039990,0.66000001,195.58,195.56,5.11352014]
[1760327040175,0.66,195.57,195.56,5.11352014]
[1760327040374,1e-08,195.58,195.56,5.11352014]
[1760327040574,0.66000001,195.58,195.56,5.11352014]
[1760327041481,1e-08,195.58,195.56,5.11352014]
[1760327041682,1e-08,195.58,195.54,23.26342328]
[1760327041683,1e-08,195.58,195.55,17.89823574]
[1760327042084,0.66000001,195.58,195.55,17.89823574]
[1760327042281,1e-08,195.58,195.55,17.89823574]
[1760327042496,0.66,195.57,195.55,17.89823574]
[1760327042697,1e-08,195.58,195.55,12.7844541]
[1760327043102,0.66000001,195.58,195.55,12.7844541]
[1760327043686,0.66000001,195.58,195.55,17.89823574]
[1760327044805,0.66000001,195.58,195.55,12.7844541]
[1760327045899,0.10580451,195.56,195.55,12.7844541]
[1760327047817,0.76580451,195.56,195.55,12.7844541]
[1760327048112,0.10580451,195.56,195.55,12.7844541]
[1760327048303,0.10580451,195.56,195.55,13.5044541]
[1760327048502,0.09311956,195.57,195.55,23.98276948]
[1760327048706,1e-08,195.58,195.56,0.72]
[1760327048911,1e-08,195.58,195.57,10.47831538]
[1760327049288,1e-08,195.58,195.57,11.19831538]
[1760327049805,1e-08,195.59,195.57,16.31157405]
[1760327050011,1e-08,195.59,195.58,0.72]
[1760327051697,0.09401192,195.61,195.59,5.11273582]
[1760327051897,0.09401192,195.61,195.59,5.83273582]
[1760327052099,0.66,195.6,195.59,5.11273582]
[1760327052609,0.09401192,195.61,195.59,5.11273582]
[1760327053912,0.09401192,195.61,195.58,17.89549032]
[1760327054093,0.09401192,195.61,195.58,18.61549032]
[1760327054294,0.09401192,195.61,195.59,0.72]
[1760327054517,0.09401192,195.61,195.58,17.89549032]
[1760327054811,0.09401192,195.61,195.58,18.61549032]
[1760327056920,0.09401192,195.61,195.58,17.89549032]
[1760327057121,0.09401192,195.61,195.58,18.61549032]
[1760327058424,0.66,195.6,195.58,17.89549032]
[1760327058718,0.66,195.59,195.53,59.46322265]
[1760327059024,4.39515741,195.56,195.53,17.90006648]
[1760327059219,20.8,195.53,195.46,5.83596215]
[1760327059429,21.46,195.53,195.46,10.23111956]
[1760327059926,0.66,195.53,195.47,0.72]
[1760327060624,0.66,195.53,195.48,5.11561285]
[1760327060920,0.66,195.53,195.48,18.62464497]
[1760327062417,5.05515741,195.52,195.48,17.90464497]
[1760327062615,0.66,195.51,195.48,17.90464497]
[1760327063119,0.66,195.5,195.48,17.90464497]
[1760327063514,0.66,195.5,195.48,5.11561285]
[1760327063717,21.46,195.49,195.4,5.83770726]
[1760327063913,4.39515741,195.44,195.39,30.70768924]
[1760327064110,0.66,195.54,195.42,25.19515741]
[1760327064317,25.19515741,195.53,195.44,4.39515741]
[1760327064626,25.19515741,195.53,195.45,0.72]
[1760327065121,0.72,195.55,195.46,4.39515741]
[1760327065307,5.11515741,195.54,195.47,0.69]
[1760327065512,4.39515741,195.52,195.47,0.69]
[1760327065908,0.72,195.54,195.45,4.39515741]
[1760327065909,5.11515741,195.54,195.48,0.69]
[1760327066117,0.09294166,195.49,195.48,5.80561285]
[1760327066720,0.09398968,195.5,195.48,5.80561285]
[1760327067027,0.09398968,195.5,195.49,0.69]
[1760327067223,0.10391532,195.51,195.49,5.08515741]
[1760327067523,0.10391532,195.51,195.5,0.69]
[1760327068229,0.10391532,195.51,195.5,5.80508951]
[1760327072416,1e-08,195.54,195.51,10.87647521]
[1760327072623,0.098313,195.56,195.53,4.39515741]
[1760327072624,1e-08,195.55,195.53,4.39515741]
[1760327073136,0.72,195.63,195.54,11.56647521]
[1760327073427,0.72,195.63,195.55,0.69]
[1760327073619,0.72,195.63,195.57,4.39515741]
[1760327073819,0.72,195.63,195.57,5.08515741]
[1760327074146,0.72,195.62,195.54,4.39515741]
[1760327074464,25.19515741,195.64,195.55,17.89823574]